bitfinex/quotes_ETHUSD_20250905
["timestamp","ask_amount","ask_price","bid_price","bid_amount"]
[1757082759941,4.94065856,4311.7,4311.6,0.004]
[1757082760244,4.46865856,4311.7,4311.6,0.004]
[1757082760544,4.46865856,4311.7,4311.2,0.004]
[1757082760545,2.319486,4311.3,4311.2,0.004]
[1757082760709,2.319486,4311.3,4310.8,0.004]
[1757082760710,2.31970122,4310.9,4310.8,0.004]
[1757082760914,2.31970122,4310.9,4308.9,4.02972457]
[1757082760915,0.49292959,4310.9,4309.3,2.32051428]
[1757082761218,1.3314,4310.8,4309.6,2.32036141]
[1757082761417,1.3314,4310.8,4309.0,2.32067473]
[1757082761620,2.3199703,4310.4,4307.9,2.32127985]
[1757082761821,2.32073333,4309.0,4307.6,0.4589]
[1757082762025,0.02900164,4310.1,4307.6,0.4589]
[1757082762210,1.3314,4310.0,4307.6,0.4589]
[1757082762413,1.3314,4310.0,4308.4,2.32103688]
[1757082762620,2.32079264,4308.9,4307.6,0.4589]
[1757082762946,1.3314,4310.0,4307.7,5.136]
[1757082763249,2.79189935,4310.6,4307.8,1.18929]
[1757082763410,2.3204036,4309.6,4308.0,2.32126276]
[1757082763610,0.0290003,4310.3,4308.0,2.32126276]
[1757082763819,0.472,4310.6,4307.9,0.4589]
[1757082764024,2.32054395,4309.4,4307.9,0.4589]
[1757082764221,0.02900501,4309.6,4307.5,6.837]
[1757082764443,1.36040568,4309.5,4307.6,2.32147831]
[1757082764749,1.36040568,4309.5,4307.5,1.709]
[1757082764906,1.3314,4309.5,4307.5,1.709]
[1757082765435,1.3314,4309.5,4307.6,5.5799]
[1757082765675,2.32042786,4309.6,4308.4,2.32103529]
[1757082765835,2.32067828,4309.1,4307.7,0.96104465]
[1757082766033,1.3314,4310.3,4307.8,5.117]
[1757082766034,0.02900097,4310.2,4307.8,5.117]
[1757082766237,1.3314,4310.3,4307.9,0.4589]
[1757082766447,0.116,4310.2,4309.5,0.116]
[1757082766747,0.1152,4310.5,4309.8,0.116]
[1757082766959,0.1541536,4311.5,4310.4,2.3199695]
[1757082766960,0.1152,4310.9,4310.4,2.3199695]
[1757082767255,0.1152,4311.3,4309.7,0.4589]
[1757082767407,0.1152,4311.3,4309.9,2.32020859]
[1757082767408,2.3198573,4310.7,4309.9,2.32020859]
[1757082767613,0.472,4311.4,4309.2,1.709]
[1757082767844,0.1541536,4311.5,4309.2,1.709]
[1757082768050,12.44687688,4309.6,4305.8,1e-08]
[1757082768222,2.32201574,4306.7,4305.8,1e-08]
[1757082768422,2.32239485,4305.9,4305.8,1e-08]
[1757082768735,2.32244879,4305.8,4302.2,2.58766059]
[1757082768934,2.32331211,4304.2,4302.3,2.32433814]
[1757082769112,1.3314,4304.1,4302.2,4.91204458]
[1757082769311,1.3314,4304.1,4302.3,0.49120446]
[1757082769312,0.21228689,4304.0,4302.3,0.49120446]
[1757082769516,2.32358203,4303.7,4300.4,0.60597093]
[1757082769745,1.83244545,4303.6,4300.4,0.60597093]
[1757082769964,2.32455864,4301.9,4300.2,1.709]
[1757082770252,2.79573198,4303.5,4300.2,1.709]
[1757082770253,2.32481709,4301.5,4300.3,7.87041568]
[1757082770556,1.3314,4301.8,4300.4,0.98081157]
[1757082770756,1.3314,4301.8,4300.5,2.32531101]
[1757082771051,1.3314,4301.8,4300.6,5.543]
[1757082771249,1.8034,4302.8,4300.7,5.344]
[1757082771553,0.18324414,4304.0,4300.7,5.344]
[1757082771554,0.472,4303.6,4300.9,3.0]
[1757082771764,0.472,4303.6,4301.1,3.0]
[1757082772119,0.472,4303.6,4300.8,0.354]
[1757082772342,1.3314,4303.5,4301.0,2.32504068]
[1757082772535,0.0290468,4303.4,4300.7,5.344]
[1757082772824,0.0290468,4303.4,4300.3,2.32541915]
[1757082772825,2.32488527,4301.3,4300.3,2.32541915]
[1757082773042,1.3314,4301.7,4300.4,5.527]
[1757082773369,2.32393261,4303.1,4300.5,5.522]
[1757082773660,1.3314,4303.0,4300.9,3.0]
[1757082773953,2.32423197,4302.5,4301.5,2.32475145]
[1757082774158,0.472,4303.0,4300.4,2.32536508]
[1757082774361,1.3314,4302.8,4300.3,3.0]
[1757082774556,0.02905152,4302.7,4300.6,3.0]
[1757082774853,1.3564,4302.8,4300.3,2.32541915]
[1757082775021,1.3564,4302.8,4300.7,5.522]
[1757082775217,1.3564,4302.8,4301.3,2.32487852]
[1757082775444,0.025,4302.8,4302.7,2.32412206]
[1757082775651,0.025,4302.8,4301.7,7.228]
[1757082775953,0.025,4302.8,4302.7,2.32412206]
[1757082777141,0.025,4302.8,4302.7,10.83112206]
[1757082777354,1e-08,4302.8,4302.7,11.18512206]
[1757082777856,1e-08,4302.8,4302.7,10.94512206]
[1757082778066,1.33140001,4302.8,4302.0,5.501]
[1757082778238,1.33140001,4302.8,4301.9,5.501]
[1757082778552,1.33140001,4302.8,4301.2,2.32493053]
[1757082778740,1.33140001,4302.8,4301.9,2.32455426]
[1757082779064,1e-08,4302.8,4302.5,2.32421823]
[1757082779235,1e-08,4302.8,4302.6,2.32417055]
[1757082779438,1e-08,4302.8,4301.7,4.03565911]
[1757082779439,1.3314,4302.7,4301.7,1.711]
[1757082780350,1e-08,4302.8,4301.7,1.711]
[1757082780548,1e-08,4302.8,4301.8,8.492]
[1757082780870,1e-08,4302.8,4301.7,1.711]
[1757082780871,1e-08,4302.8,4302.7,2.32412206]
[1757082781029,0.025,4303.8,4302.7,5.487]
[1757082781226,0.025,4303.8,4303.2,2.32383107]
[1757082781427,0.025,4303.8,4303.3,1.711]
[1757082781654,1.8034,4303.7,4301.3,3.0]
[1757082781858,0.025,4303.8,4301.5,0.792]
[1757082782172,0.025,4303.8,4301.7,3.0]
[1757082782377,0.025,4303.8,4302.2,0.792]
[1757082782553,0.025,4303.8,4303.7,2.32358203]
[1757082782729,0.025,4303.8,4303.7,4.03458203]
[1757082783068,0.025,4303.8,4303.7,9.52258203]
[1757082783562,0.025,4304.8,4304.7,2.32304225]
[1757082783930,0.025,4304.8,4304.7,7.80504225]
[1757082784128,0.025,4304.8,4303.7,1.711]
[1757082784342,1.83243802,4304.7,4302.6,4.03517187]
[1757082784547,1.8034,4304.6,4302.7,2.32412206]
[1757082784752,2.32345374,4304.0,4302.8,2.32405687]
[1757082784950,1.8034,4303.9,4302.6,1.711]
[1757082785682,1.8034,4304.7,4302.6,1.711]
[1757082785866,1.8034,4304.7,4302.9,3.0]
[1757082785867,2.32309622,4304.6,4302.9,3.0]
[1757082786067,2.32309622,4304.6,4302.6,1.711]
[1757082786068,0.472,4304.5,4302.6,1.711]
[1757082786229,1.3314,4304.7,4302.8,3.0]
[1757082786435,0.025,4304.8,4303.2,2.32385201]
[1757082786630,0.025,4304.8,4303.3,5.486]
[1757082786830,1.8034,4304.7,4302.7,3.0]
[1757082787135,0.0290387,4304.6,4302.8,5.485]
[1757082787336,1.8034,4304.5,4302.6,1.711]
[1757082787636,1.36044005,4304.4,4301.8,0.025]
[1757082787846,1.711,4304.3,4301.8,0.025]
[1757082788051,0.116,4302.6,4301.9,0.116]
[1757082788248,1.36045287,4302.5,4301.8,0.025]
[1757082788570,0.02905287,4302.5,4301.8,0.025]
[1757082788768,1.3314,4303.2,4301.8,0.025]
[1757082788769,0.116,4302.4,4301.8,0.025]
[1757082789275,1.2927,4302.5,4301.8,0.025]
[1757082789443,2.32433814,4302.3,4301.8,0.025]
[1757082789652,0.116,4301.9,4301.8,0.025]
[1757082789868,4.20735426,4301.9,4301.8,0.025]
[1757082790166,1.2927,4302.8,4301.8,0.025]
[1757082790367,1.7668,4303.8,4302.7,2.3241138]
[1757082790663,1.2927,4303.8,4301.8,0.025]
[1757082790834,1.79583937,4304.5,4302.0,3.0]
[1757082791034,1.7668,4304.4,4301.8,0.025]
[1757082791263,1.79584005,4304.4,4301.9,0.354]
[1757082791430,0.4741,4305.0,4302.8,2.32402137]
[1757082791633,1.2927,4305.3,4303.2,2.32385201]
[1757082791834,1.2927,4305.3,4303.3,7.174]
[1757082792039,1.2927,4305.3,4303.7,14.5]
[1757082792246,0.02903465,4305.2,4303.7,14.5]
[1757082792649,1.2927,4305.3,4303.7,14.5]
[1757082792978,1.7668,4304.7,4303.7,2.32357905]
[1757082793177,1.2927,4304.7,4302.9,2.32401403]
[1757082793369,2.32288458,4305.0,4303.0,19.95]
[1757082793574,1.2927,4306.1,4303.2,0.792]
[1757082793889,1.2927,4306.1,4304.7,2.32304225]
[1757082794057,0.02902926,4306.0,4303.2,2.67780475]
[1757082794258,0.0242,4304.8,4304.7,16.82304225]
[1757082794469,0.0242,4304.8,4304.7,26.98204225]
[1757082794672,0.025,4306.8,4305.7,2.32250272]
[1757082794883,0.025,4306.8,4306.7,2.32196345]
[1757082795484,0.025,4308.8,4308.7,2.32088564]
[1757082795986,0.025,4308.8,4308.7,7.76488564]
[1757082796161,0.025,4308.8,4308.7,19.82088564]
[1757082796363,1e-08,4308.8,4308.7,20.61288564]
[1757082796585,1e-08,4308.8,4308.7,20.17488564]
[1757082796783,1e-08,4308.8,4308.7,16.82088564]
[1757082797210,1e-08,4308.8,4308.7,14.5]
[1757082797760,1.76680001,4308.8,4307.6,3.0]
[1757082797960,1e-08,4308.8,4308.7,2.32088564]
[1757082798184,1e-08,4308.8,4307.8,3.0]
[1757082798488,1e-08,4308.8,4308.0,5.32120992]
[1757082798693,1e-08,4308.8,4307.8,5.448]
[1757082798869,0.47410001,4308.8,4307.7,5.445]
[1757082799070,0.02901107,4308.7,4307.0,1.711]
[1757082799259,0.47410001,4308.8,4307.1,14.5]
[1757082799459,1e-08,4308.8,4307.1,14.5]
[1757082799686,0.4741,4308.7,4307.1,14.5]
[1757082799885,1.79581174,4308.6,4306.8,0.025]
[1757082800088,0.116,4307.0,4306.8,0.025]
[1757082800267,0.02902319,4306.9,4305.1,14.5]
[1757082800468,0.116,4305.9,4305.5,5.449]
[1757082800686,0.0290178,4307.7,4305.5,5.449]
[1757082800888,0.0290178,4307.7,4306.0,3.0]
[1757082800889,1.2927,4307.6,4306.0,3.0]
[1757082801089,2.32156679,4307.5,4306.2,3.0]
[1757082801290,2.32153221,4307.5,4306.5,2.32206515]
[1757082801499,2.32153221,4307.5,4306.4,3.0]
[1757082801500,3.61418849,4307.6,4305.7,2.32245743]
[1757082801702,1.2927,4307.6,4306.0,3.0]
[1757082801868,0.02901915,4307.5,4306.1,14.5]
[1757082802068,1e-08,4308.8,4306.2,5.442]
[1757082802269,1e-08,4308.8,4308.7,2.32088564]
[1757082802502,1e-08,4308.8,4308.7,5.447]
[1757082802817,1e-08,4308.8,4306.6,0.792]
[1757082802818,1.76680001,4308.8,4307.9,5.445]
[1757082802970,1.76680001,4308.8,4307.3,1.711]
[1757082803279,0.02901107,4308.7,4306.8,3.0]
[1757082803481,2.32184169,4307.0,4305.8,0.025]
[1757082803680,2.32200653,4306.7,4305.8,2.34743904]
[1757082803901,0.02902521,4306.6,4305.8,0.025]
[1757082804070,2.32239485,4305.9,4305.8,0.025]
[1757082804270,4.08919485,4305.9,4305.8,0.025]
[1757082804479,2.32239485,4305.9,4305.8,0.025]
[1757082804681,2.32177629,4307.1,4305.8,0.025]
[1757082804682,1.2927,4307.0,4305.8,0.025]
[1757082804973,1.2927,4307.0,4305.4,2.29765032]
[1757082805175,1.2927,4307.9,4305.2,5.32277246]
[1757082805377,1.2927,4307.9,4305.3,9.221]
[1757082805671,1.2927,4307.9,4306.2,14.5]
[1757082805894,1.2927,4307.9,4306.4,2.3221252]
[1757082806097,0.02901174,4308.6,4306.4,3.0]
[1757082806276,1.79581241,4308.5,4306.4,5.424]
[1757082806472,0.792,4308.3,4303.4,0.4741]
[1757082806687,0.792,4307.7,4304.9,14.5]
[1757082806889,7.14281847,4307.6,4304.9,14.5]
[1757082807098,1.7668,4307.5,4304.4,4.711]
[1757082807307,12.44687688,4307.2,4304.4,1.711]
[1757082807493,1.74002184,4307.1,4304.5,14.5]
[1757082807674,3.50682184,4307.1,4304.6,3.0]
[1757082807982,3.50682184,4307.1,4304.8,5.457]
[1757082808189,1.32172184,4307.1,4305.5,2.32256071]
[1757082808391,1.32172184,4307.1,4304.8,5.457]
[1757082808392,1.7668,4307.0,4304.8,0.025]
[1757082808592,0.025,4306.8,4305.0,3.0]
[1757082808804,1.79582454,4306.7,4304.8,0.025]
[1757082809302,1.79582454,4306.7,4305.0,2.32287621]
[1757082809510,2.32227936,4306.2,4305.0,2.32287612]
[1757082809681,1.2927,4306.7,4305.0,3.0]
[1757082810073,0.025,4306.8,4305.6,2.32255269]
[1757082810277,0.025,4306.8,4305.7,8.416]
[1757082810491,0.141,4306.8,4306.1,0.116]
[1757082810716,0.025,4306.8,4305.9,3.0]
[1757082810890,0.025,4306.8,4306.0,5.407]
[1757082811069,0.025,4306.8,4306.3,2.32217081]
[1757082811282,0.025,4306.8,4306.1,3.0]
[1757082811500,0.025,4306.8,4305.9,3.0]
[1757082811676,0.025,4306.8,4306.4,2.32211772]
[1757082811871,0.025,4306.8,4306.1,3.0]
[1757082812072,0.025,4306.8,4306.2,2.32222021]
[1757082812297,0.025,4306.8,4305.8,14.5]
[1757082812495,0.025,4306.8,4305.9,8.393]
[1757082812779,0.025,4306.8,4305.8,14.5]
[1757082812780,0.025,4306.8,4306.1,3.0]
[1757082812976,0.025,4306.8,4306.1,5.3222722]
[1757082813197,0.025,4306.8,4305.9,3.0]
[1757082813399,0.025,4306.8,4306.0,5.384]
[1757082813623,0.02902454,4306.7,4304.7,1.711]
[1757082813794,2.32197824,4306.7,4305.5,2.32258294]
[1757082813973,2.32196345,4306.7,4305.3,2.32270371]
[1757082814179,3.63963095,4306.8,4305.4,2.32264806]
[1757082814415,1.79582454,4306.7,4304.8,0.025]
[1757082814616,2.32246466,4305.8,4304.8,0.025]
[1757082814812,2.32255667,4305.6,4303.8,0.025]
[1757082815129,2.32309687,4304.6,4303.8,0.025]
[1757082815408,1.79583263,4305.5,4303.8,0.025]
[1757082815613,0.4741,4304.5,4303.8,0.025]
[1757082815812,1.7668,4304.5,4303.8,0.025]
[1757082816022,1.2927,4304.5,4303.8,0.025]
[1757082816323,2.32320416,4304.4,4303.8,0.025]
[1757082816526,1.2927,4304.5,4303.8,0.025]
[1757082816692,1.7958333,4305.4,4303.8,0.025]
[1757082816890,0.025,4307.8,4304.7,2.32302297]
[1757082817102,3.61447373,4307.1,4304.9,3.0]
[1757082817410,3.61447373,4307.1,4304.8,7.096]
[1757082817411,0.025,4307.8,4305.1,3.0]
[1757082817611,2.32146019,4307.7,4305.1,3.0]
[1757082817789,0.025,4307.8,4306.7,2.32196345]
[1757082817994,0.025,4307.8,4306.7,5.32196345]
[1757082818387,0.025,4307.8,4306.7,5.67596345]
[1757082819192,0.025,4307.8,4306.7,5.53687981]
[1757082819393,2.34641216,4307.8,4306.7,5.53687981]
[1757082819716,2.32142594,4307.7,4306.7,10.90587981]
[1757082820012,0.02901847,4307.6,4306.7,0.21491636]
[1757082820224,0.02901847,4307.6,4306.4,1.711]
[1757082820225,1.2974,4307.4,4306.5,0.21491636]
[1757082820388,0.4563,4306.7,4306.6,0.21491636]
[1757082820582,1.4134,4306.7,4306.0,0.33091636]
[1757082820785,1.4134,4306.7,4306.1,0.21491636]
[1757082820995,0.025,4306.8,4306.2,0.33091636]
[1757082821209,0.025,4306.8,4306.3,5.57591636]
[1757082821406,0.025,4306.8,4306.7,0.116]
[1757082821591,0.025,4306.8,4306.7,0.33168443]
[1757082822022,1.3216,4306.8,4306.7,0.21568443]
[1757082822225,1.7779,4306.8,4305.4,1.711]
[1757082822423,1.7779,4306.8,4305.5,5.355]
[1757082822624,1.7779,4306.8,4305.6,5.349]
[1757082822863,1.7779,4306.8,4304.8,0.004]
[1757082823005,0.02902454,4306.7,4305.3,2.32267123]
[1757082823205,1.7779,4306.8,4305.3,2.32270113]
[1757082826243,0.05,4309.8,4308.8,0.1212]
[1757082826427,0.05,4309.8,4309.5,2.32045396]
[1757082826632,0.05,4309.8,4309.7,2.32034712]
[1757082826938,0.05,4309.8,4308.8,0.1212]
[1757082827153,0.05,4309.8,4309.7,2.32034712]
[1757082827312,0.05,4309.8,4309.7,4.03034712]
[1757082827511,0.05,4309.8,4309.7,1.71]
[1757082827808,0.05,4309.8,4309.7,9.38834712]
[1757082828008,0.001,4310.3,4310.2,2.32007795]
[1757082828434,0.001,4310.3,4310.2,5.67407795]
[1757082828606,0.001,4310.8,4310.7,2.31980884]
[1757082829009,0.001,4310.8,4310.7,11.02380884]
[1757082829211,0.001,4310.8,4310.7,12.03053176]
[1757082829442,0.025,4312.8,4311.7,0.792]
[1757082829650,0.025,4312.8,4310.8,5.31975503]
[1757082829651,0.025,4312.8,4312.7,2.31873304]
[1757082829846,0.001,4313.9,4313.7,2.31819551]
[1757082830018,0.001,4313.9,4313.7,7.24291843]
[1757082830343,0.001,4313.9,4313.7,12.58791843]
[1757082830844,0.001,4313.9,4313.7,12.94091843]
[1757082831247,0.001,4313.9,4313.7,7.59591843]
[1757082831550,1e-08,4313.8,4313.7,8.38791843]
[1757082831714,1e-08,4313.8,4313.7,13.71791843]
[1757082831914,1e-08,4313.8,4313.7,8.38791843]
[1757082832111,1e-08,4313.8,4313.7,13.82811843]
[1757082832326,1e-08,4313.8,4313.7,13.70891843]
[1757082832527,1e-08,4313.8,4313.7,3.21472292]
[1757082832731,1e-08,4313.8,4312.6,1.709]
[1757082833418,1e-08,4313.8,4313.7,2.31819551]
[1757082833611,1e-08,4313.8,4313.7,10.63719551]
[1757082833832,1e-08,4313.8,4313.7,10.63419551]
[1757082834116,1e-08,4313.8,4313.7,5.316]
[1757082834324,1.29740001,4313.8,4311.5,2.31934952]
[1757082834548,1.75370001,4313.8,4312.3,2.31892547]
[1757082834743,1.75370001,4313.8,4312.7,5.31]
[1757082834944,1.75370001,4313.8,4311.8,0.025]
[1757082835249,2.34717295,4313.7,4312.0,2.31910946]
[1757082835451,2.34717295,4313.7,4312.0,2.31909427]
[1757082835452,1.7537,4313.6,4312.0,2.31909427]
[1757082835652,2.31817318,4313.8,4311.9,5.302]
[1757082835653,2.31864125,4312.9,4311.9,5.302]
[1757082835950,1.78268349,4312.8,4311.9,5.302]
[1757082836114,1.2974,4312.8,4311.8,3.025]
[1757082836310,1.2974,4312.8,4311.8,0.025]
[1757082836751,0.4563,4312.7,4311.8,0.025]
[1757082837045,0.48528416,4312.7,4310.8,0.025]
[1757082837351,2.31920196,4311.9,4310.8,0.025]
[1757082837555,2.3195931,4311.2,4310.8,0.025]
[1757082837713,0.02899155,4311.6,4310.8,0.025]
[1757082837918,1.2974,4311.8,4310.8,0.025]
[1757082838316,1.2974,4311.8,4307.6,2.3214491]
[1757082838317,0.48529088,4311.7,4307.6,2.3214491]
[1757082838615,1.2974,4311.6,4308.8,1.807]
[1757082838816,2.3194322,4311.4,4308.8,0.025]
[1757082839021,2.32023944,4309.9,4308.8,0.025]
[1757082839242,0.02900299,4309.9,4308.8,0.025]
[1757082839423,1.7537,4309.8,4308.8,0.025]
[1757082840053,1.7537,4309.8,4308.8,2.34582488]
[1757082840253,0.02900433,4309.7,4308.8,0.025]
[1757082840550,2.32104725,4308.4,4308.3,0.004]
[1757082840789,1.7537,4308.4,4308.3,0.004]
[1757082841164,4.07474725,4308.4,4308.3,0.004]
[1757082841345,1.7537,4308.4,4308.3,0.004]
[1757082842745,4.07474725,4308.4,4308.3,0.004]
[1757082843624,2.32004567,4310.3,4308.3,0.004]
[1757082843833,1.2974,4309.3,4308.3,0.004]
[1757082844222,0.0290077,4309.2,4308.3,0.004]
[1757082844424,1.2974,4309.3,4308.3,0.004]
[1757082844641,0.4853077,4309.2,4308.3,0.004]
[1757082844968,2.3209543,4308.6,4308.3,0.004]
[1757082845168,0.4853077,4309.2,4308.3,0.004]
[1757082845484,2.32126276,4308.0,4307.9,0.004]
[1757082845835,1.2974,4308.0,4307.9,0.004]
[1757082846041,0.4563,4308.6,4307.9,0.004]
[1757082846559,5.343,4309.4,4307.9,0.004]
[1757082846738,1.2974,4309.4,4307.9,0.004]
[1757082847150,0.02900703,4309.3,4307.9,0.004]
[1757082847347,1.2974,4309.4,4308.7,2.32088265]
[1757082847548,5.236,4310.3,4307.9,0.004]
[1757082847549,1.2974,4310.3,4309.5,2.32041475]
[1757082847749,1.2974,4310.3,4309.7,2.32033375]
[1757082847978,0.4563,4310.9,4310.3,2.32001888]
[1757082847979,0.48529626,4310.9,4310.3,2.32001888]
[1757082848165,0.48529626,4310.9,4309.5,2.32044412]
[1757082848166,1.2974,4311.2,4309.5,5.3204548]
[1757082848369,0.02898819,4312.1,4310.7,2.31980884]
[1757082848569,1.2974,4312.2,4310.7,2.31980884]
[1757082848885,0.4563,4312.0,4310.4,1.709]
[1757082849082,1.2974,4311.6,4309.6,6.929]
[1757082849272,1.2974,4311.6,4310.7,2.31980884]
[1757082849473,1.2974,4311.6,4309.7,0.21330049]
[1757082849474,0.025,4312.8,4304.6,1.13603298]
[1757082849662,4.0869239,4310.7,4308.1,2.32120888]
[1757082849852,1.7381,4310.7,4308.2,0.353]
[1757082850048,1.2651,4310.7,4308.5,5.32099338]
[1757082850350,1.2651,4310.7,4308.6,0.21338426]
[1757082850351,1.7381,4310.7,4308.6,0.21338426]
[1757082850560,1.7381,4310.7,4308.6,3.21338426]
[1757082850762,1.76709828,4310.6,4308.0,6.922]
[1757082850962,1.7381,4310.5,4308.1,5.212]
[1757082851162,0.02583133,4310.4,4308.8,0.025]
[1757082851362,1.29093133,4310.4,4308.8,0.025]
[1757082851563,1.2651,4310.4,4308.8,0.025]
[1757082851783,0.0290003,4310.3,4308.8,0.025]
[1757082852113,2.34902442,4310.3,4308.8,0.025]
[1757082852273,0.0290003,4310.3,4308.8,0.025]
[1757082852456,1.7381,4310.2,4308.8,0.025]
[1757082852658,0.116,4308.9,4308.8,0.025]
[1757082853003,1.709,4309.8,4307.9,0.004]
[1757082853330,1.2651,4309.7,4308.0,2.32125181]
[1757082853503,0.02900433,4309.7,4307.9,0.796]
[1757082853664,2.32018206,4310.1,4309.1,2.32063644]
[1757082853858,0.02900232,4310.0,4308.4,1.709]
[1757082854098,0.02900232,4310.0,4308.5,3.0]
[1757082854259,1.2651,4309.9,4308.6,0.21380666]
[1757082854466,0.473,4309.8,4308.4,1.709]
[1757082854667,1.2651,4309.9,4308.4,1.709]
[1757082854970,0.473,4310.5,4308.5,2.32099338]
[1757082855295,0.473,4310.5,4308.6,0.792]
[1757082855492,0.025,4310.8,4309.9,2.32020701]
[1757082855701,0.025,4310.8,4309.3,0.21403559]
[1757082855999,0.025,4310.8,4308.7,3.353]
[1757082856000,4.08287086,4310.8,4309.8,2.32024652]
[1757082856166,4.08287086,4310.8,4308.7,3.0]
[1757082856167,1.7631,4310.8,4309.1,0.21403559]
[1757082856497,1.7631,4310.8,4309.1,2.32061753]
[1757082856797,1.7631,4310.8,4308.5,2.32099132]
[1757082856798,0.02899761,4310.7,4308.4,4.03001479]
[1757082857099,1.7381,4310.6,4308.4,1.709]
[1757082857273,1.76709895,4310.5,4308.4,1.709]
[1757082857606,1.76709895,4310.5,4307.9,0.004]
[1757082857607,1.7381,4310.4,4307.9,0.004]
[1757082858394,0.0290003,4310.3,4307.9,0.004]
[1757082858596,2.32013178,4310.1,4308.3,2.32105992]
[1757082858783,0.50200232,4310.0,4307.9,0.004]
[1757082859182,1.29092931,4309.9,4307.9,0.004]
[1757082859392,1.2651,4309.9,4307.9,2.32527253]
[1757082859614,0.02900366,4309.8,4307.9,0.004]
[1757082859937,2.32048967,4309.5,4307.9,0.004]
[1757082860233,1.2651,4309.9,4308.1,2.32120888]
[1757082860414,2.3201357,4310.1,4308.2,5.321155]
[1757082860615,5.7669705,4310.6,4308.3,3.21407258]
[1757082860843,2.32044213,4309.6,4308.4,0.21407258]
[1757082861017,1.76709895,4310.5,4308.4,2.32104725]
[1757082861018,1.7381,4310.5,4308.4,2.32104725]
[1757082861219,1.709,4310.6,4308.3,0.21407258]
[1757082861220,1.76709962,4310.4,4308.3,0.21407258]
[1757082861417,1.76709962,4310.4,4307.9,0.004]
[1757082861916,1.76709962,4310.4,4307.9,0.21807258]
[1757082862123,1.7381,4310.4,4308.1,3.0]
[1757082862305,2.32007795,4310.2,4308.2,0.21407258]
[1757082862506,1.76709962,4310.4,4308.4,3.0]
[1757082862730,1.76709962,4310.4,4308.5,0.21407258]
[1757082862731,1.7381,4310.3,4308.5,0.21407258]
[1757082863030,2.3204152,4309.6,4309.1,0.116]
[1757082863235,1.2901,4310.8,4309.2,0.21407258]
[1757082863419,0.02899761,4310.7,4309.3,0.21407258]
[1757082863621,1.2651,4310.6,4309.4,0.21407258]
[1757082863832,1.2651,4310.6,4308.8,1.709]
[1757082863833,0.498832,4310.5,4308.9,0.21407258]
[1757082864001,1.2651,4310.4,4309.0,0.21407258]
[1757082864201,0.0290003,4310.3,4309.1,0.21407258]
[1757082864530,0.0290003,4310.3,4308.8,1.709]
[1757082864531,2.3205625,4309.3,4309.2,0.21407258]
[1757082864733,4.05866437,4309.3,4308.9,0.21407258]
[1757082864920,1.7381,4309.2,4309.0,0.21407258]
[1757082865120,1.2651,4310.0,4309.3,2.32055431]
[1757082865324,1.2651,4310.0,4309.4,0.21407258]
[1757082865513,0.02900299,4309.9,4309.5,0.21407258]
[1757082865852,0.792,4309.7,4307.9,0.004]
[1757082866002,6.90310501,4309.6,4307.9,0.004]
[1757082866207,0.02900568,4309.5,4307.9,0.004]
[1757082866436,4.05860865,4309.4,4307.9,0.004]
[1757082866732,1.73900703,4309.3,4307.9,0.004]
[1757082866934,2.32125742,4308.1,4307.9,0.004]
[1757082867134,2.32117285,4308.2,4307.9,0.004]
[1757082867351,2.32109885,4308.4,4307.9,0.004]
[1757082867352,2.32120909,4308.1,4307.9,0.004]
[1757082867645,1.7381,4309.2,4307.9,0.004]
[1757082867815,1.7671077,4309.2,4307.9,0.004]
[1757082868005,1.7381,4309.2,4308.0,2.32122866]
[1757082868210,1.7671077,4309.2,4307.9,0.004]
[1757082868404,2.32088053,4308.8,4307.9,0.004]
[1757082868715,2.32114133,4308.3,4307.9,0.004]
[1757082868916,1.7381,4308.7,4307.9,0.004]
[1757082869147,3.58625066,4308.3,4307.9,0.004]
[1757082869304,0.50201443,4308.2,4307.9,0.004]
[1757082869509,1.7381,4308.2,4307.9,0.004]
[1757082869736,1.7381,4308.1,4307.9,0.004]
[1757082870050,0.02900703,4309.3,4307.9,0.004]
[1757082870051,1.7381,4308.0,4307.9,0.004]
[1757082870756,4.05936276,4308.0,4307.9,0.004]
[1757082871738,2.32077896,4308.9,4307.9,0.004]
[1757082871739,1.2651,4308.9,4307.9,0.004]
[1757082871945,1.29410972,4308.9,4307.9,0.004]
[1757082872145,0.473,4308.8,4307.9,0.004]
[1757082872439,0.02901107,4308.7,4307.9,0.004]
[1757082872625,1.29411107,4308.7,4307.9,0.004]
[1757082873028,1.2651,4308.7,4307.9,0.004]
[1757082873343,1.7381,4308.6,4307.9,0.004]
[1757082873720,1.2651,4308.6,4307.9,0.004]
[1757082873912,1.7381,4308.7,4307.9,0.004]
[1757082874113,0.473,4308.5,4307.9,0.004]
[1757082874441,1.2651,4308.7,4307.9,0.004]
[1757082875158,0.02900299,4309.9,4307.9,0.004]
[1757082875159,2.32074454,4309.0,4307.9,0.004]
[1757082875317,1.2651,4309.4,4307.9,0.004]
[1757082875649,0.001,4309.6,4307.9,3.004]
[1757082875879,0.001,4309.6,4309.5,2.3204548]
[1757082876734,0.001,4309.6,4308.7,2.32088376]
[1757082876735,0.001,4309.6,4308.7,3.0]
[1757082877035,2.32141625,4309.6,4308.0,1.71]
[1757082877343,1.76710568,4309.5,4308.0,1.71]
[1757082877543,2.32072733,4309.0,4308.0,4.03121133]
[1757082877746,2.31976376,4309.3,4308.0,4.03121133]
[1757082877946,1.7381,4309.5,4308.0,1.71]